bitfinex/quotes_SOLUSD_20240616
["timestamp","ask_amount","ask_price","bid_price","bid_amount"]
[1718562851666,5.34,148.23,148.19,10.7141]
[1718562854542,5.34,148.24,148.19,10.7141]
[1718562857636,5.34,148.23,148.18,6.0806]
[1718562858442,5.34,148.23,148.15,10.7141]
[1718562858652,5.34,148.22,148.16,5.34]
[1718562859246,5.34,148.23,148.17,5.34]
[1718562862055,5.34,148.23,148.18,5.34]
[1718562862559,5.34,148.24,148.18,5.34]
[1718562865060,7.8359,148.24,148.18,5.34]
[1718562865241,5.34,148.23,148.18,5.34]
[1718562865441,5.34,148.23,148.17,5.51]
[1718562865642,5.34,148.23,148.18,0.17]
[1718562867463,27.8053,148.23,148.17,5.34]
[1718562867660,5.34,148.21,148.15,16.0541]
[1718562867846,5.34,148.21,148.16,0.17]
[1718562868761,5.34,148.21,148.15,16.0541]
[1718562869137,5.34,148.2,148.15,10.7141]
[1718562869339,7.4885,148.23,148.15,10.7141]
[1718562869637,5.34,148.21,148.15,16.0541]
[1718562876869,7.8364,148.21,148.15,16.0541]
[1718562877258,5.34,148.2,148.15,10.7141]
[1718562877567,5.34,148.2,148.18,2.4968]
[1718562877744,5.34,148.2,148.19,2.4967]
[1718562888080,15.0016,148.24,148.16,0.17]
[1718562888260,5.34,148.24,148.16,0.68]
[1718562888460,5.34,148.23,148.18,5.34]
[1718562888781,5.34,148.23,148.17,5.34]
[1718562889366,12.827,148.26,148.17,5.34]
[1718562889568,5.34,148.24,148.18,5.68]
[1718562889971,5.34,148.23,148.18,5.68]
[1718562890783,24.9554,148.27,148.18,5.68]
[1718562891099,5.34,148.24,148.18,5.68]
[1718562891599,5.34,148.24,148.18,6.75122449]
[1718562892185,5.34,148.24,148.18,5.68]
[1718562892386,5.34,148.24,148.18,0.34]
[1718562892573,5.34,148.24,148.18,35.68]
[1718562893632,5.34,148.24,148.19,5.34]
[1718562894577,5.34,148.25,148.19,5.34]
[1718562894780,7.8358,148.25,148.19,5.34]
[1718562895670,5.34,148.25,148.19,5.34]
[1718562896195,7.8358,148.25,148.19,5.34]
[1718562897281,12.8274,148.25,148.19,5.34]
[1718562897985,7.8358,148.25,148.19,5.34]
[1718562898786,12.8273,148.25,148.19,5.34]
[1718562900390,7.8358,148.25,148.19,5.34]
[1718562901211,12.8274,148.25,148.19,5.34]
[1718562901700,20.3147,148.25,148.19,5.34]
[1718562902000,23.1452,148.28,148.19,5.34]
[1718562902204,2.4956,148.26,148.19,5.34]
[1718562902384,5.34,148.25,148.19,5.34]
[1718562903816,5.34,148.25,148.19,35.34]
[1718562907404,24.9549,148.27,148.2,0.17]
[1718562907619,15.7845,148.32,148.21,5.34]
[1718562907785,15.7845,148.32,148.2,41.3941]
[1718562907786,5.34,148.28,148.2,41.3941]
[1718562907994,5.34,148.28,148.21,5.51]
[1718562907995,5.34,148.27,148.21,5.51]
[1718562908190,5.34,148.27,148.22,0.51]
[1718562908419,5.34,148.28,148.22,5.85]
[1718562908598,7.8353,148.28,148.22,5.85]
[1718562909420,5.34,148.28,148.22,5.85]
[1718562910111,5.34,148.28,148.22,0.51]
[1718562910616,5.34,148.28,148.22,5.85]
[1718562914331,5.34,148.28,148.22,35.85]
[1718562914512,5.34,148.26,148.22,30.0]
[1718562916148,5.34,148.25,148.2,10.7141]
[1718562916321,5.34,148.24,148.2,10.7141]
[1718562917440,2.4955,148.27,148.2,10.7141]
[1718562917441,5.34,148.25,148.2,10.7141]
[1718562917929,5.34,148.26,148.2,16.0541]
[1718562918699,5.34,148.26,148.2,10.7141]
[1718562918904,5.34,148.26,148.2,16.0541]
[1718562924135,5.34,148.25,148.2,10.7141]
[1718562924308,5.34,148.24,148.14,6.40716163]
[1718562924510,5.34,148.19,148.13,11.5662]
[1718562925309,5.34,148.19,148.18,2.4969]
[1718562925510,5.34,148.19,148.13,11.5662]
[1718562925850,7.4894,148.21,148.13,11.5662]
[1718562925851,5.34,148.18,148.17,2.497]
[1718562926338,42.4654,148.23,148.19,2.4967]
[1718562926647,5.34,148.21,148.19,2.4967]
[1718562928436,5.34,148.21,148.18,2.4968]
[1718562929327,7.8364,148.21,148.18,2.4968]
[1718562930019,5.34,148.21,148.18,2.4968]
[1718562930443,7.8364,148.21,148.18,2.4968]
[1718562931824,12.8293,148.21,148.18,2.4968]
[1718562934137,2.4964,148.21,148.18,2.4968]
[1718562934325,5.34,148.2,148.18,2.4968]
[1718562936745,2.4968,148.19,148.16,2.4971]
[1718562936948,12.8304,148.19,148.16,2.4971]
[1718562937246,5.34,148.18,148.16,2.4971]
[1718562937634,5.34,148.18,148.17,2.4971]
[1718562942767,5.34,148.19,148.18,2.4968]
[1718562943067,5.34,148.2,148.19,2.4967]
[1718562945662,5.34,148.21,148.19,2.4967]
[1718562948157,7.8364,148.21,148.18,2.4968]
[1718562948928,7.8364,148.21,148.15,5.34]
[1718562949231,7.8364,148.21,148.18,2.4968]
[1718562949858,2.4964,148.21,148.18,2.4968]
[1718562950042,7.8364,148.21,148.18,2.4968]
[1718562951773,12.8293,148.21,148.18,2.4968]
[1718562951943,20.3187,148.21,148.18,2.4968]
[1718562952344,2.4963,148.22,148.15,5.34]
[1718562952666,2.4963,148.22,148.19,2.4966]
[1718562952667,7.8363,148.22,148.19,2.4966]
[1718562952851,7.4888,148.22,148.19,2.4966]
[1718562953053,12.8288,148.22,148.19,2.4966]
[1718562953446,7.8363,148.22,148.19,2.4966]
[1718562953757,7.8363,148.22,148.14,0.51]
[1718562953758,10.3321,148.24,148.21,2.4964]
[1718562953961,30.2997,148.24,148.21,2.4964]
[1718562954544,2.4961,148.23,148.21,2.4964]
[1718562954971,30.2997,148.24,148.21,2.4964]
[1718562955558,2.4961,148.23,148.21,2.4964]
[1718562955764,2.4961,148.23,148.18,6.68952394]
[1718562957146,22.4637,148.24,148.18,5.34]
[1718562957346,2.4961,148.23,148.18,5.34]
[1718562959071,30.2997,148.24,148.18,5.34]
[1718562959367,2.4961,148.23,148.18,5.34]
[1718562960171,7.4883,148.23,148.18,5.34]
[1718562960374,12.8283,148.23,148.17,16.7341]
[1718562960674,12.8283,148.23,148.18,0.51]
[1718562961073,7.8361,148.23,148.18,0.51]
[1718562961373,20.3167,148.23,148.18,0.51]
[1718562961543,2.4964,148.21,148.15,0.17]
[1718562961874,5.34,148.2,148.15,6.02]
[1718562962468,5.34,148.2,148.18,2.4968]
[1718562962862,5.34,148.2,148.19,2.4967]
[1718562963174,7.8365,148.21,148.19,2.4967]
[1718562963362,15.3259,148.21,148.14,10.7141]
[1718562963560,6.6413,148.24,148.14,10.7141]
[1718562963561,7.8368,148.19,148.14,10.7141]
[1718562963746,5.34,148.18,148.17,2.497]
[1718562964353,5.34,148.18,148.15,2.4973]
[1718562964550,5.34,148.18,148.13,11.5662]
[1718562964774,5.34,148.18,148.16,2.4972]
[1718562966074,7.492,148.16,148.13,2.4977]
[1718562966371,2.4971,148.17,148.14,2.4974]
[1718562966577,5.34,148.15,148.14,2.4974]
[1718562967755,5.34,148.15,148.13,2.4976]
[1718562968063,5.34,148.14,148.13,2.4976]
[1718562968472,24.9702,148.18,148.15,2.4974]
[1718562968787,5.34,148.16,148.15,2.4974]
[1718562968960,2.497,148.18,148.15,2.4974]
[1718562969156,2.497,148.18,148.1,5.34]
[1718562969157,5.34,148.16,148.14,2.4975]
[1718562969357,5.34,148.16,148.15,2.4974]
[1718562970379,5.34,148.16,148.14,2.4974]
[1718562970588,5.34,148.15,148.14,2.4974]
[1718562976567,5.34,148.15,148.13,2.4977]
[1718562976868,5.34,148.14,148.13,2.4977]
[1718562977366,5.34,148.14,148.08,10.7141]
[1718562977694,5.34,148.12,148.05,6.41]
[1718562977863,5.34,148.12,148.11,2.4981]
[1718562979174,5.34,148.12,148.06,0.17]
[1718562979369,5.34,148.12,148.11,2.4981]
[1718562980673,5.34,148.13,148.07,5.34]
[1718562980876,5.34,148.13,148.12,2.4979]
[1718562981792,5.34,148.13,148.11,2.498]
[1718562981968,5.34,148.12,148.11,2.498]
[1718562986880,5.34,148.14,148.13,2.4977]
[1718562987375,5.34,148.14,148.12,2.4978]
[1718562987688,5.34,148.13,148.11,2.4981]
[1718562987888,5.34,148.12,148.1,2.4982]
[1718562988072,5.34,148.11,148.1,2.4982]
[1718562988664,5.34,148.11,148.09,2.4983]
[1718562988897,5.34,148.1,148.09,2.4983]
[1718562991691,5.34,148.1,148.08,2.4985]
[1718562991891,27.8226,148.12,148.09,2.4984]
[1718562991892,24.9807,148.12,148.09,2.4984]
[1718562992082,5.34,148.1,148.09,2.4984]
[1718562992390,7.8384,148.1,148.07,2.4987]
[1718562992595,5.34,148.09,148.03,5.34]
[1718562992790,5.34,148.09,148.08,2.4986]
[1718562993978,5.34,148.09,148.08,2.15397583]
[1718562994800,5.34,148.09,148.03,5.34]
[1718562995098,5.34,148.07,148.05,2.499]
[1718562995401,5.34,148.07,148.05,2.4989]
[1718562995579,5.34,148.07,148.06,2.4989]
[1718562996802,5.34,148.07,148.01,6.5344]
[1718562996999,5.34,148.07,148.06,2.4989]
[1718562997883,5.34,148.07,148.05,2.499]
[1718562998092,5.34,148.06,148.05,2.499]
[1718563000083,5.34,148.06,148.04,2.4991]
[1718563000400,24.9866,148.08,148.05,2.4991]
[1718563000592,5.34,148.06,148.05,2.4991]
[1718563001296,5.34,148.07,148.06,2.4989]
[1718563001495,5.34,148.08,148.07,2.4987]
[1718563002292,5.34,148.08,148.06,2.4988]
[1718563002603,5.34,148.08,148.07,2.4988]
[1718563003297,5.34,148.08,148.06,2.4988]
[1718563003503,5.34,148.07,148.06,2.4988]
[1718563004389,5.34,148.08,148.06,2.4988]
[1718563004597,5.34,148.08,148.02,5.34]
[1718563004793,5.34,148.08,148.06,2.4988]
[1718563008586,7.8386,148.08,148.06,2.4988]
[1718563009902,5.34,148.08,148.06,2.4988]
[1718563010108,12.8356,148.09,148.06,2.4988]
[1718563011787,2.4986,148.08,148.06,2.4988]
[1718563011992,2.4986,148.08,148.05,2.499]
[1718563012400,7.8386,148.08,148.06,2.4989]
[1718563013012,5.34,148.08,148.06,2.4989]
[1718563013324,7.8386,148.08,148.06,2.4989]
[1718563013485,7.8386,148.08,148.0,0.17]
[1718563013486,18.0143,148.11,148.01,10.7141]
[1718563013688,18.0143,148.11,148.07,2.4986]
[1718563013689,43.3398,148.11,148.07,2.4986]
[1718563013991,43.3398,148.11,148.08,2.4986]
[1718563013992,2.4983,148.1,148.08,2.4986]
[1718563014496,2.4983,148.1,148.07,2.4986]
[1718563014697,2.4983,148.1,148.08,2.4986]
[1718563015016,2.4983,148.1,148.07,2.4986]
[1718563015510,15.5161,148.11,148.05,5.34]
[1718563015714,15.5161,148.11,148.02,6.9114]
[1718563015715,15.5161,148.11,148.09,2.4984]
[1718563016209,18.0142,148.11,148.08,2.4985]
[1718563016592,28.3505,148.11,148.08,2.4985]
[1718563018728,7.8381,148.11,148.09,2.4984]
[1718563018901,17.4839,148.14,148.08,5.34]
[1718563019102,30.3169,148.14,148.11,2.498]
[1718563019302,2.4978,148.13,148.11,2.498]
[1718563019507,2.4978,148.13,148.1,2.4981]
[1718563019706,7.4934,148.13,148.1,2.4981]
[1718563020718,7.4934,148.13,148.05,5.51]
[1718563020719,12.834,148.12,148.05,0.17]
[1718563020934,12.834,148.12,148.09,2.4983]
[1718563021248,20.3279,148.12,148.09,2.4983]
[1718563021398,12.834,148.12,148.09,2.4983]
[1718563021797,5.34,148.12,148.1,2.4982]
[1718563022105,7.8379,148.13,148.07,5.34]
[1718563022303,2.498,148.12,148.1,2.4981]
[1718563022712,7.838,148.12,148.1,2.4981]
[1718563023097,7.8379,148.13,148.11,2.4981]
[1718563023298,2.4979,148.13,148.11,2.4981]
[1718563023506,27.8193,148.14,148.08,5.34]
[1718563023507,25.3215,148.14,148.08,5.34]
[1718563023732,2.4976,148.14,148.12,2.4979]
[1718563023911,6.6372,148.18,148.12,5.34]
[1718563024217,18.5888,148.2,148.18,2.4969]
[1718563024393,5.40649109,148.24,148.16,5.34]
[1718563024394,16.0922,148.24,148.16,5.34]
[1718563024595,16.0922,148.24,148.12,11.8926]
[1718563024596,2.4964,148.21,148.12,11.8926]
[1718563024815,16.0922,148.24,148.13,0.51]
[1718563025032,2.4968,148.19,148.17,2.497]
[1718563025211,7.8368,148.19,148.16,2.4971]
[1718563025412,7.8368,148.19,148.13,5.85]
[1718563025929,5.34,148.19,148.13,5.85]
[1718563026606,7.4896,148.21,148.14,5.34]
[1718563026816,5.34,148.2,148.14,5.34]
[1718563027832,5.34,148.17,148.11,10.7141]
[1718563028009,5.34,148.17,148.12,5.34]
[1718563028207,22.4701,148.2,148.12,5.34]
[1718563028411,5.34,148.18,148.12,5.34]
[1718563028911,5.34,148.17,148.11,5.34]
[1718563029113,5.34,148.16,148.1,6.02]
[1718563029422,5.34,148.16,148.15,2.4973]
[1718563030530,5.34,148.17,148.11,5.34]
[1718563032637,5.34,148.17,148.1,0.34]
[1718563032832,5.34,148.16,148.11,5.34]
[1718563033334,14.9839,148.16,148.08,6.5793]
[1718563033532,5.34,148.15,148.13,2.4976]
[1718563033758,2.4975,148.15,148.08,11.9193]
[1718563034037,5.34,148.14,148.12,2.4978]
[1718563034341,5.34,148.13,148.12,2.4978]
[1718563041352,5.34,148.14,148.12,2.4978]
[1718563044253,7.8376,148.14,148.12,2.4978]
[1718563044552,7.8376,148.14,148.08,5.34]
[1718563044553,20.3258,148.14,148.11,2.498]
[1718563044764,5.34,148.13,148.11,2.498]
[1718563044933,7.8378,148.13,148.11,2.498]
[1718563045336,12.8334,148.13,148.1,2.4981]
[1718563045539,7.8378,148.13,148.11,2.4981]
[1718563045737,5.34,148.13,148.11,2.4981]
[1718563045936,7.8378,148.13,148.11,2.4981]
[1718563046246,5.34,148.13,148.11,2.4981]
[1718563048770,5.34,148.13,148.12,2.4979]
[1718563049138,5.34,148.13,148.11,2.4979]
[1718563049339,5.34,148.13,148.12,2.4979]
[1718563049664,5.34,148.13,148.11,2.498]
[1718563050858,5.34,148.13,148.12,2.4979]
[1718563052143,5.34,148.13,148.07,10.7141]
[1718563052345,5.34,148.13,148.11,2.498]
[1718563052746,5.34,148.13,148.12,2.4979]
[1718563053667,5.34,148.13,148.11,2.498]
[1718563053844,5.34,148.12,148.11,2.4981]
[1718563057761,5.34,148.13,148.11,2.4981]
[1718563058878,7.8378,148.13,148.11,2.4981]
[1718563061071,28.7444,148.15,148.12,2.4978]
[1718563061273,21.577481,148.18,148.15,2.4974]
[1718563061274,2.4971,148.17,148.15,2.4974]
[1718563061580,7.8371,148.17,148.15,2.4974]
[1718563061749,12.8314,148.17,148.14,2.4975]
[1718563061951,20.3228,148.17,148.14,2.4975]
[1718563062549,12.8314,148.17,148.14,2.4975]
[1718563063392,2.4973,148.16,148.14,2.4975]
[1718563063747,7.8373,148.16,148.14,2.4975]
[1718563063968,5.34,148.16,148.14,2.4975]
[1718563065655,14.9829,148.17,148.14,2.4975]
[1718563065850,5.34,148.16,148.14,2.4975]
[1718563066050,7.8373,148.16,148.14,2.4975]
[1718563066480,7.8373,148.16,148.1,5.34]
[1718563066774,7.8373,148.16,148.14,2.4975]
[1718563071075,12.8319,148.16,148.13,2.4976]
[1718563071979,5.34,148.16,148.09,6.6107]
[1718563072186,30.3167,148.14,148.11,2.498]
[1718563072481,20.3261,148.14,148.11,2.498]
[1718563072660,2.4978,148.13,148.11,2.498]
[1718563072860,12.8331,148.14,148.11,2.498]
[1718563073594,12.8331,148.14,148.12,2.4979]
[1718563073768,7.8377,148.14,148.12,2.4979]
[1718563073965,5.34,148.14,148.13,2.4978]
[1718563074171,7.8375,148.15,148.13,2.4978]
[1718563074573,2.4975,148.15,148.13,2.4978]
[1718563077066,7.4924,148.15,148.12,2.4978]
[1718563077386,7.4924,148.15,148.13,2.4978]
[1718563078187,12.8313,148.17,148.14,2.4975]
[1718563078374,12.8313,148.17,148.11,5.34]
[1718563078375,12.8313,148.17,148.15,2.4974]
[1718563078691,12.8313,148.17,148.14,2.4974]
[1718563079172,20.3227,148.17,148.14,2.4974]
[1718563079565,2.4973,148.16,148.14,2.4974]
[1718563082088,2.4976,148.14,148.12,2.4978]
[1718563082460,7.8376,148.14,148.12,2.4978]
[1718563082679,5.34,148.14,148.12,2.4978]
[1718563082970,5.34,148.14,148.13,2.4978]
[1718563084371,5.34,148.15,148.13,2.4978]
[1718563085474,5.34,148.15,148.14,2.4976]
[1718563091800,7.4916,148.17,148.15,2.4974]
[1718563091801,5.34,148.16,148.15,2.4974]
[1718563092507,7.8373,148.16,148.14,2.4975]
[1718563092882,5.34,148.15,148.14,2.4975]
[1718563095179,5.34,148.16,148.11,5.34]
[1718563095375,5.34,148.17,148.16,2.4973]
[1718563096200,7.8372,148.17,148.14,2.4974]
[1718563096407,5.34,148.16,148.15,2.4974]
[1718563096983,7.8373,148.16,148.14,2.4975]
[1718563097177,5.34,148.16,148.14,2.4975]
[1718563097391,7.8373,148.16,148.14,2.4975]
[1718563097587,2.4976,148.14,148.12,2.4979]
[1718563097790,5.34,148.13,148.12,2.4979]
[1718563099015,6.5254,148.12,148.03,10.7141]
[1718563099221,4.9971,148.09,147.99,11.5447485]
[1718563099523,5.34,148.09,147.99,23.0894975]
[1718563099692,5.34,148.09,148.03,5.34]
[1718563099893,5.34,148.1,148.05,5.34]
[1718563102492,5.34,148.1,148.04,5.34]
[1718563102794,5.34,148.1,148.03,0.51]
[1718563102995,5.34,148.1,148.04,5.34]
[1718563103705,5.34,148.09,148.04,5.34]
[1718563104486,12.8356,148.09,147.99,17.86423733]
[1718563104796,5.34,148.06,147.99,0.8306485]
[1718563105002,5.34,148.07,147.99,0.8306485]
[1718563105209,5.34,148.07,147.99,1.39373011]
[1718563105507,15.4079,148.08,147.99,0.8306485]
[1718563105689,22.4837,148.11,148.04,5.34]
[1718563105690,5.34,148.09,148.04,5.34]
[1718563106205,5.34,148.1,148.04,5.34]
[1718563108002,7.8383,148.1,148.04,5.34]
[1718563108806,12.8349,148.1,148.04,5.34]
[1718563111433,20.3298,148.1,148.04,5.34]
[1718563111797,2.4984,148.09,148.04,5.34]
[1718563112621,20.3299,148.1,148.04,5.34]
[1718563113021,21.9333,148.12,148.04,5.34]
[1718563113219,24.9769,148.14,148.07,5.34]
[1718563113524,2.4981,148.11,148.07,5.34]
[1718563114093,12.8346,148.11,148.05,13.212]
[1718563114416,12.8346,148.11,148.06,5.34]
[1718563114417,14.989,148.11,148.06,5.34]
[1718563114904,7.4946,148.11,148.06,5.34]
[1718563115234,30.3205,148.12,148.06,5.34]
[1718563115532,2.4981,148.11,148.06,5.34]
[1718563116520,27.8224,148.12,148.06,5.34]
[1718563116521,30.3205,148.12,148.06,5.34]
[1718563116726,2.4981,148.11,148.06,5.34]
[1718563117597,30.3205,148.12,148.06,5.34]
[1718563118026,30.3204,148.12,148.06,5.34]
[1718563118329,12.8341,148.12,148.06,5.34]
[1718563119026,7.838,148.12,148.06,5.34]
[1718563119329,5.34,148.11,148.06,5.34]
[1718563120931,2.4978,148.13,148.06,5.34]
[1718563121103,5.34,148.13,148.07,5.34]
[1718563122205,7.8378,148.13,148.07,5.34]
[1718563122428,7.8378,148.13,148.08,5.34]
[1718563123203,12.8334,148.13,148.08,5.34]
[1718563123933,20.3268,148.13,148.08,5.34]
[1718563124415,20.3268,148.13,148.07,5.34]
[1718563124805,2.4979,148.12,148.07,5.34]
[1718563129702,2.4976,148.14,148.08,5.34]
[1718563129908,7.4929,148.14,148.09,5.34]
[1718563130219,5.34,148.15,148.09,5.34]
[1718563130423,20.3249,148.15,148.09,5.34]
[1718563131134,2.4976,148.14,148.09,5.34]
[1718563138735,7.4928,148.14,148.09,5.34]
[1718563139234,2.4976,148.14,148.09,5.34]
[1718563139842,12.8329,148.14,148.09,5.34]
[1718563142539,7.8376,148.14,148.09,5.34]
[1718563143036,12.8328,148.14,148.09,5.34]
[1718563143206,7.8376,148.14,148.09,5.34]
[1718563143412,24.9749,148.15,148.09,5.34]
[1718563143718,7.8376,148.14,148.09,5.34]
[1718563144334,12.8327,148.15,148.09,5.34]
[1718563144637,6.3406,148.19,148.08,0.17]
[1718563144845,2.4971,148.17,148.12,5.34]
[1718563145352,7.4913,148.17,148.12,5.34]
[1718563145858,14.9827,148.17,148.12,5.34]
[1718563146719,2.4973,148.16,148.12,5.34]
[1718563148049,24.9713,148.17,148.12,5.34]
[1718563148875,2.4973,148.16,148.12,5.34]
[1718563149063,2.4973,148.16,148.11,1.35013705]
[1718563149221,2.4973,148.16,148.12,5.34]
[1718563152047,7.4914,148.17,148.12,5.34]
[1718563152836,14.9828,148.17,148.12,5.34]
[1718563153529,2.4973,148.16,148.12,5.34]
[1718563154347,22.4741,148.17,148.11,0.17]
[1718563154560,9.9873,148.19,148.11,0.68]
[1718563154735,7.4904,148.19,148.14,5.34]
[1718563154942,2.4969,148.19,148.14,5.34]
[1718563155159,7.4905,148.19,148.14,5.34]
[1718563155666,2.4969,148.18,148.14,5.34]
[1718563156043,24.968,148.19,148.14,5.34]
[1718563156656,24.968,148.19,148.11,0.68]
[1718563156657,2.4961,148.23,148.18,5.34]
[1718563156867,2.4961,148.23,148.16,0.17]
[1718563156868,7.488,148.24,148.2,5.34]
[1718563157368,7.488,148.24,148.19,5.34]
[1718563157660,17.8198,148.24,148.19,5.34]
[1718563158036,20.3158,148.24,148.19,5.34]
[1718563159961,12.828,148.24,148.19,5.34]
[1718563162264,20.3158,148.24,148.19,5.34]
[1718563162454,2.4961,148.23,148.19,5.34]
[1718563164279,2.4961,148.23,148.15,28.75842512]
[1718563164280,15.5835,148.27,148.15,28.75842512]
[1718563164579,7.4898,148.2,148.15,5.34]
[1718563164758,14.9796,148.2,148.15,5.34]
[1718563164938,7.4898,148.2,148.15,5.34]
[1718563165145,2.4966,148.2,148.15,5.34]
[1718563165575,30.3055,148.21,148.15,5.34]
[1718563165754,7.8366,148.21,148.15,5.34]
[1718563166272,2.4966,148.21,148.16,5.34]
[1718563168551,2.4964,148.22,148.16,5.34]
[1718563168751,12.8286,148.23,148.18,5.34]
[1718563169073,12.8286,148.23,148.17,5.85]
[1718563169448,20.3169,148.23,148.17,5.85]
[1718563169781,2.4963,148.22,148.17,5.85]
[1718563170648,7.4889,148.22,148.17,5.85]
[1718563170946,2.4963,148.22,148.17,5.85]
[1718563171546,22.4667,148.22,148.17,5.85]
[1718563171748,24.9631,148.22,148.17,5.85]
[1718563173163,7.4891,148.22,148.17,5.85]
[1718563173778,14.9779,148.22,148.17,5.85]
[1718563174258,7.4891,148.22,148.17,5.85]
[1718563176083,2.4964,148.21,148.17,5.85]
[1718563176254,14.9779,148.22,148.17,5.85]
[1718563177278,2.4964,148.21,148.17,5.85]
[1718563177580,22.4667,148.22,148.17,5.85]
[1718563178070,24.9631,148.22,148.17,5.85]
[1718563178294,2.4964,148.21,148.17,5.85]
[1718563186586,2.4963,148.22,148.17,5.85]
[1718563186890,7.4889,148.22,148.18,5.34]
[1718563187082,14.9778,148.22,148.18,5.34]
[1718563187592,2.4964,148.21,148.18,5.34]
[1718563189691,24.963,148.22,148.18,5.34]
[1718563189987,25.34,148.26,148.12,34.572]
[1718563190291,2.4968,148.19,148.15,5.34]
[1718563190677,30.3063,148.2,148.14,5.51]
[1718563190868,30.3063,148.2,148.15,0.51]
[1718563191263,12.83,148.2,148.15,0.51]
[1718563191668,2.4967,148.2,148.15,5.85]
[1718563192395,30.3054,148.21,148.15,5.85]
[1718563193290,17.8234,148.2,148.15,0.34]
[1718563193473,7.8367,148.2,148.14,5.51]
[1718563193679,5.34,148.19,148.14,5.34]
[1718563194078,7.8367,148.19,148.14,5.34]
[1718563194906,5.34,148.19,148.14,5.34]
[1718563195600,12.8299,148.2,148.14,5.34]
[1718563196281,7.8367,148.2,148.14,5.34]
[1718563196876,12.8299,148.2,148.14,5.34]
[1718563197086,20.3197,148.2,148.13,20.51]
[1718563197278,12.8299,148.2,148.14,5.34]
[1718563197978,7.8367,148.2,148.14,5.34]
[1718563198379,12.8299,148.2,148.14,5.34]
[1718563200205,2.4971,148.17,148.13,20.34]
[1718563200379,5.34,148.17,148.12,13.212]
[1718563200693,7.8374,148.16,148.09,13.212]
[1718563201006,7.8374,148.16,148.1,25.34]
[1718563201601,5.34,148.16,148.1,25.34]
[1718563202007,5.34,148.17,148.11,5.34]
[1718563202895,29.66781296,148.22,148.12,5.34]
[1718563203101,5.34,148.19,148.13,5.34]
[1718563203400,17.4757,148.21,148.12,0.17]
[1718563203401,7.4895,148.21,148.14,5.34]
[1718563203571,7.8366,148.2,148.14,5.34]
[1718563204715,5.34,148.2,148.14,5.34]
[1718563205006,12.83,148.2,148.13,0.51]
[1718563205205,12.83,148.2,148.14,5.51]
[1718563206692,20.3199,148.2,148.14,5.51]
[1718563206900,2.4968,148.19,148.14,5.51]
[1718563207092,7.8368,148.19,148.14,5.51]
[1718563207607,5.34,148.19,148.14,5.51]